fUSD/lending_fUSD_20260622
["ID","MTS","AMOUNT","RATE_DAILY","PERIOD"]
[426034558,1782126645000,-500.0,0.00021707,2]
[426034557,1782126645000,-429.31428633,0.00021707,2]
[426034561,1782126645000,-1779.0,0.000218,2]
[426034560,1782126645000,-232.32857158,0.00021707,2]
[426034559,1782126645000,-500.0,0.00021707,2]
[426034562,1782126645000,-358.19769023,0.00021816,2]
[426034564,1782126645000,-151.0,0.00021816,2]
[426034566,1782126645000,-151.0,0.00021816,2]
[426034567,1782126645000,-151.0,0.00021816,2]
[426034506,1782126645000,-166.0,0.00021,2]
[426034568,1782126645000,-2236.95670847,0.00021816,2]
[426034554,1782126645000,-500.0,0.00021707,2]
[426034537,1782126645000,-217.15233878,0.00021268,2]
[426034565,1782126645000,-194.72792766,0.00021816,2]
[426034540,1782126645000,-1055.92431775,0.000214,2]
[426034538,1782126645000,-785.0,0.00021271,2]
[426034508,1782126645000,-205.0,0.00021,2]
[426034505,1782126645000,-156.0,0.00021,2]
[426034510,1782126645000,-150.365,0.00021051,2]
[426034514,1782126645000,-150.0,0.00021051,2]
[426034517,1782126645000,-150.0,0.00021051,2]
[426034519,1782126645000,-150.0,0.00021051,2]
[426034518,1782126645000,-150.0,0.00021051,2]
[426034516,1782126645000,-167.235,0.00021051,2]
[426034520,1782126645000,-150.0,0.00021051,2]
[426034523,1782126645000,-1368.605,0.00021051,2]
[426034522,1782126645000,-388.0,0.00021051,2]
[426034521,1782126645000,-3561.0,0.00021051,2]
[426034512,1782126645000,-150.257,0.00021051,2]
[426034528,1782126645000,-200.0,0.00021256,2]
[426034536,1782126645000,-847.53135692,0.00021268,2]
[426034535,1782126645000,-2157.14243826,0.00021268,2]
[426034539,1782126645000,-501.0,0.00021364,3]
[426034534,1782126645000,-151.0,0.00021268,2]
[426034524,1782126645000,-1279.283,0.00021051,2]
[426034532,1782126645000,-187.78006524,0.00021268,2]
[426034531,1782126645000,-151.0,0.00021268,2]
[426034530,1782126645000,-200.0,0.00021268,2]
[426034529,1782126645000,-358.19769023,0.00021268,2]
[426034527,1782126645000,-1055.92431775,0.000212,2]
[426034525,1782126645000,-20000.0,0.000212,2]
[426034533,1782126645000,-151.0,0.00021268,2]
[426034617,1782126646000,-2319.72410669,0.00022364,2]
[426034610,1782126646000,-201.93286098,0.00022364,2]
[426034608,1782126646000,-151.0,0.00022364,2]
[426034613,1782126646000,-151.0,0.00022364,2]
[426034601,1782126646000,-436.1,0.00022353,2]
[426034619,1782126646000,-847.53135692,0.00022364,2]
[426034606,1782126646000,-200.0,0.00022364,2]
[426034600,1782126646000,-1055.92431775,0.000223,2]
[426034603,1782126646000,-358.19769023,0.00022364,2]
[426034599,1782126646000,-785.0,0.00022268,2]
[426034615,1782126646000,-151.0,0.00022364,2]
[426034623,1782126646000,-949.99589257,0.00022407,2]
[426034634,1782126646000,-36205.09698188,0.000225,2]
[426034630,1782126646000,-1723.43,0.00022466,2]
[426034628,1782126646000,-949.99589257,0.00022407,2]
[426034626,1782126646000,-949.99589257,0.00022407,2]
[426034632,1782126646000,-768.27,0.00022466,2]
[426034633,1782126646000,-200.0,0.00022485,2]
[426034631,1782126646000,-1657.66,0.00022466,2]
[426034636,1782126646000,-150.0,0.0002254,2]
[426034637,1782126646000,-785.0,0.000226,2]
[426034635,1782126646000,-1055.92431775,0.000225,2]
[426034639,1782126646000,-3648.0,0.00022633,2]
[426034594,1782126646000,-803.53,0.00022,2]
[426034638,1782126646000,-6082.0,0.00022633,2]
[426034621,1782126646000,-233.5188934,0.00022364,2]
[426034593,1782126646000,-205.0,0.00022,2]
[426034584,1782126646000,-436.0,0.00022,2]
[426034596,1782126646000,-151.0,0.0002209,2]
[426034641,1782126646000,-151.0,0.00022638,2]
[426034570,1782126646000,-225.18697532,0.00021816,2]
[426034571,1782126646000,-185.66,0.00021819,2]
[426034572,1782126646000,-805.99,0.0002185,2]
[426034573,1782126646000,-300.0,0.000219,7]
[426034574,1782126646000,-1055.92431775,0.000219,2]
[426034579,1782126646000,-785.0,0.00021936,2]
[426034578,1782126646000,-200.0,0.00021918,2]
[426034577,1782126646000,-200.0,0.00021918,2]
[426034576,1782126646000,-171.65,0.00021918,2]
[426034575,1782126646000,-5000.0,0.00021918,2]
[426034580,1782126646000,-2029.24164624,0.00022,2]
[426034581,1782126646000,-2213.44721922,0.00022,2]
[426034582,1782126646000,-450.0,0.00022,2]
[426034585,1782126646000,-180.0,0.00022,2]
[426034587,1782126646000,-826.0,0.00022,2]
[426034583,1782126646000,-672.0,0.00022,2]
[426034586,1782126646000,-181.0,0.00022,2]
[426034590,1782126646000,-166.0,0.00022,2]
[426034589,1782126646000,-172.93319847,0.00022,2]
[426034591,1782126646000,-555.0,0.00022,2]
[426034588,1782126646000,-1115.0,0.00022,2]
[426034592,1782126646000,-150.0,0.00022,2]
[426034595,1782126646000,-501.0,0.00022045,3]
[426034598,1782126646000,-244.96425062,0.0002211,2]
[426034597,1782126646000,-1055.92431775,0.000221,2]
[426034643,1782126646000,-200.0,0.00022671,2]
[426034569,1782126646000,-847.53135692,0.00021816,2]
[426034657,1782126646000,-358.19769023,0.00022912,2]
[426034711,1782126646000,-448.38696378,0.000232,2]
[426034713,1782126646000,-803.44,0.00023223,7]
[426034709,1782126646000,-151.0,0.00023186,2]
[426034717,1782126646000,-150.0,0.0002326,21]
[426034728,1782126646000,-358.19769023,0.0002346,2]
[426034719,1782126646000,-785.0,0.00023265,2]
[426034724,1782126646000,-501.0,0.00023409,5]
[426034721,1782126646000,-203.21556019,0.00023313,2]
[426034726,1782126646000,-837.26431755,0.00023435,2]
[426034740,1782126646000,-2494.55939288,0.0002346,2]
[426034730,1782126646000,-200.0,0.0002346,2]
[426034737,1782126646000,-151.0,0.0002346,2]
[426034735,1782126646000,-217.15233878,0.0002346,2]
[426034733,1782126646000,-151.0,0.0002346,2]
[426034744,1782126646000,-251.11897888,0.0002346,2]
[426034753,1782126646000,-226.97211214,0.00023561,7]
[426034748,1782126646000,-1765.77335329,0.000235,2]
[426034746,1782126646000,-204.1896684,0.00023499,2]
[426034742,1782126646000,-847.53135692,0.0002346,2]
[426034751,1782126646000,-578.53,0.000235,7]
[426034760,1782126646000,-785.0,0.00023598,2]
[426034764,1782126646000,-164.92882676,0.00023817,2]
[426034762,1782126646000,-150.0,0.00023667,2]
[426034645,1782126646000,-1055.92431775,0.000227,2]
[426034758,1782126646000,-197.29519277,0.00023597,2]
[426034705,1782126646000,-206.0,0.00023009,2]
[426034707,1782126646000,-310.0,0.000231,2]
[426034755,1782126646000,-202.29854883,0.00023597,2]
[426034698,1782126646000,-157.17250671,0.00023,2]
[426034653,1782126646000,-721.12765534,0.00022911,2]
[426034715,1782126646000,-200.0,0.00023239,2]
[426034651,1782126646000,-236.31465493,0.0002285,2]
[426034649,1782126646000,-501.0,0.00022727,4]
[426034647,1782126646000,-533.76605895,0.0002271,2]
[426034666,1782126646000,-151.0,0.00022912,2]
[426034664,1782126646000,-209.40437684,0.00022912,2]
[426034661,1782126646000,-151.0,0.00022912,2]
[426034659,1782126646000,-200.0,0.00022912,2]
[426034668,1782126646000,-151.0,0.00022912,2]
[426034670,1782126646000,-2405.55389863,0.00022912,2]
[426034681,1782126646000,-1055.92431775,0.00023,2]
[426034672,1782126646000,-847.53135692,0.00022912,2]
[426034655,1782126646000,-599.60298507,0.00022911,2]
[426034677,1782126646000,-785.0,0.00022933,2]
[426034679,1782126646000,-16575.22346195,0.00022993,2]
[426034693,1782126646000,-1115.0,0.00023,2]
[426034703,1782126646000,-205.0,0.00023,2]
[426034691,1782126646000,-826.0,0.00023,2]
[426034689,1782126646000,-181.0,0.00023,2]
[426034700,1782126646000,-555.0,0.00023,2]
[426034685,1782126646000,-345.77740706,0.00023,3]
[426034682,1782126646000,-672.0,0.00023,2]
[426034683,1782126646000,-436.0,0.00023,2]
[426034675,1782126646000,-242.15909246,0.00022912,2]
[426034687,1782126646000,-180.0,0.00023,2]
[426034696,1782126646000,-166.0,0.00023,2]
[426034839,1782126647000,-2586.85809042,0.00024008,2]
[426034844,1782126647000,-260.4103811,0.00024008,2]
[426034855,1782126647000,-150.0,0.00024051,2]
[426034847,1782126647000,-156.41101665,0.0002405,2]
[426034846,1782126647000,-160.92931993,0.0002404,2]
[426034842,1782126647000,-847.53135692,0.00024008,2]
[426034848,1782126647000,-150.0,0.00024051,2]
[426034850,1782126647000,-150.0,0.00024051,2]
[426034849,1782126647000,-150.0,0.00024051,2]
[426034862,1782126647000,-1360.0,0.00024051,2]
[426034853,1782126647000,-150.0,0.00024051,2]
[426034857,1782126647000,-3561.0,0.00024051,2]
[426034860,1782126647000,-383.0,0.00024051,2]
[426034866,1782126647000,-285.0,0.00024065,2]
[426034864,1782126647000,-1276.0,0.00024051,2]
[426034868,1782126647000,-200.0,0.00024087,2]
[426034870,1782126647000,-501.0,0.00024091,5]
[426034879,1782126647000,-785.0,0.00024262,2]
[426034834,1782126647000,-225.18697532,0.00024008,2]
[426034873,1782126647000,-3774.65181799,0.0002421,2]
[426034851,1782126647000,-150.0,0.00024051,2]
[426034832,1782126647000,-200.0,0.00024008,2]
[426034788,1782126647000,-500.0,0.00024,2]
[426034826,1782126647000,-205.0,0.00024,2]
[426034877,1782126647000,-191.01747689,0.00024262,2]
[426034768,1782126647000,-569.72,0.000239,7]
[426034777,1782126647000,-3600.0,0.00024,2]
[426034766,1782126647000,-448.11948058,0.00023898,2]
[426034770,1782126647000,-785.0,0.0002393,2]
[426034773,1782126647000,-200.0,0.00023994,2]
[426034775,1782126647000,-1042.99876031,0.00024,2]
[426034779,1782126647000,-150888.80083963,0.00024,2]
[426034786,1782126647000,-160.84900265,0.00024,2]
[426034784,1782126647000,-11203.09467203,0.00024,2]
[426034781,1782126647000,-1261.27451767,0.00024,2]
[426034808,1782126647000,-672.0,0.00024,2]
[426034811,1782126647000,-436.0,0.00024,2]
[426034813,1782126647000,-180.0,0.00024,2]
[426034817,1782126647000,-826.0,0.00024,2]
[426034815,1782126647000,-181.0,0.00024,2]
[426034819,1782126647000,-1115.0,0.00024,2]
[426034821,1782126647000,-166.0,0.00024,2]
[426034824,1782126647000,-555.0,0.00024,2]
[426034830,1782126647000,-151.0,0.00024008,2]
[426034828,1782126647000,-358.19769023,0.00024008,2]
[426034837,1782126647000,-151.0,0.00024008,2]
[426034875,1782126647000,-227.14615412,0.00024262,2]
[426034956,1782126647000,-168.57166643,0.00024848,2]
[426034884,1782126647000,-177.36566623,0.00024312,2]
[426034949,1782126647000,-501.0,0.00024773,6]
[426034947,1782126647000,-188.22353355,0.0002476,2]
[426034945,1782126647000,-152.0,0.0002475,3]
[426034939,1782126647000,-1000.0,0.00024658,2]
[426034951,1782126647000,-2000.0,0.00024809,7]
[426034943,1782126647000,-200.0,0.00024748,2]
[426034954,1782126647000,-803.44,0.00024834,7]
[426034958,1782126647000,-150.0,0.0002485,2]
[426034960,1782126647000,-785.0,0.00024927,2]
[426034941,1782126647000,-150.0,0.000247,2]
[426034962,1782126647000,-211.47667006,0.00025,2]
[426034975,1782126647000,-50000.0,0.00025,10]
[426034966,1782126647000,-540.0,0.00025,2]
[426034970,1782126647000,-3101.77430923,0.00025,2]
[426034964,1782126647000,-1819.18711919,0.00025,2]
[426034982,1782126647000,-3379.23091969,0.00025,2]
[426034984,1782126647000,-170.53466025,0.00025,2]
[426034977,1782126647000,-60294.26158838,0.00025,7]
[426034979,1782126647000,-2242.72727385,0.00025,2]
[426034882,1782126647000,-10835.64216132,0.0002429,7]
[426034973,1782126647000,-7263.86191529,0.00025,2]
[426034937,1782126647000,-220.769833,0.00024658,2]
[426034968,1782126647000,-622.51188444,0.00025,2]
[426034933,1782126647000,-158.843375,0.00024658,2]
[426034935,1782126647000,-151.0,0.00024658,2]
[426034886,1782126647000,-436.1,0.00024324,2]
[426034890,1782126647000,-158.28589708,0.00024484,2]
[426034888,1782126647000,-16575.22346195,0.00024427,2]
[426034904,1782126647000,-233.5188934,0.00024556,2]
[426034893,1782126647000,-158.28589708,0.00024484,2]
[426034897,1782126647000,-358.19769023,0.00024556,2]
[426034901,1782126647000,-200.0,0.00024556,2]
[426034899,1782126647000,-151.0,0.00024556,2]
[426034906,1782126647000,-151.0,0.00024556,2]
[426034895,1782126647000,-408.81471469,0.00024485,2]
[426034908,1782126647000,-2682.57183977,0.00024556,2]
[426034913,1782126647000,-270.0455652,0.00024556,2]
[426034918,1782126647000,-785.0,0.00024595,2]
[426034922,1782126647000,-278.65767624,0.00024639,2]
[426034927,1782126647000,-171.64,0.00024658,8]
[426034925,1782126647000,-185.8273664,0.00024639,2]
[426034916,1782126647000,-154.32386138,0.00024594,2]
[426034920,1782126647000,-803.53,0.00024621,7]
[426034929,1782126647000,-839.14,0.00024658,2]
[426034911,1782126647000,-847.53135692,0.00024556,2]
[426034931,1782126647000,-151.0,0.00024658,2]
[426035052,1782126648000,-200.0,0.00025117,2]
[426035068,1782126648000,-158.12530465,0.00025459,2]
[426035062,1782126648000,-964.36,0.00025425,2]
[426035064,1782126648000,-501.0,0.00025455,7]
[426035071,1782126648000,-159.54773013,0.00025459,2]
[426035056,1782126648000,-785.0,0.00025259,2]
[426035058,1782126648000,-188.39780812,0.000254,4]
[426035048,1782126648000,-847.53135692,0.00025104,2]
[426035050,1782126648000,-280.03725111,0.00025104,2]
[426035066,1782126648000,-164.8907304,0.00025459,2]
[426035060,1782126648000,-313.33396714,0.00025417,2]
[426035073,1782126648000,-194.99923137,0.00025459,2]
[426035099,1782126648000,-185.40875435,0.00025474,2]
[426035082,1782126648000,-202.69043999,0.00025472,2]
[426035080,1782126648000,-160.91673313,0.00025459,2]
[426035078,1782126648000,-204.16758155,0.00025459,2]
[426035089,1782126648000,-185.33805233,0.00025473,2]
[426035093,1782126648000,-171.20767822,0.00025473,2]
[426035087,1782126648000,-190.36667342,0.00025473,2]
[426035084,1782126648000,-202.69043999,0.00025472,2]
[426035091,1782126648000,-195.15312293,0.00025473,2]
[426035094,1782126648000,-175.55783824,0.00025474,2]
[426035096,1782126648000,-197.69096546,0.00025474,2]
[426035054,1782126648000,-394.0,0.00025169,2]
[426035075,1782126648000,-184.26468098,0.00025459,2]
[426035042,1782126648000,-242.15909246,0.00025104,2]
[426034988,1782126648000,-4884.54048851,0.00025,2]
[426035044,1782126648000,-151.0,0.00025104,2]
[426034986,1782126648000,-630.61457372,0.00025,5]
[426035000,1782126648000,-216.35787048,0.00025,10]
[426034990,1782126648000,-1006.45941507,0.00025,2]
[426035095,1782126648000,-166.20179216,0.00025474,2]
[426034993,1782126648000,-326.0,0.00025,2]
[426034995,1782126648000,-681.73097188,0.00025,2]
[426034997,1782126648000,-442.51646338,0.00025,2]
[426035002,1782126648000,-216.35787048,0.00025,7]
[426035004,1782126648000,-192.91209571,0.00025,2]
[426035006,1782126648000,-187.58537308,0.00025,2]
[426035008,1782126648000,-843.18926434,0.00025,2]
[426035046,1782126648000,-2781.82699784,0.00025104,2]
[426035010,1782126648000,-1118.86447896,0.00025,2]
[426035017,1782126648000,-557.70946919,0.00025,2]
[426035012,1782126648000,-173.283087,0.00025,2]
[426035019,1782126648000,-288.37,0.00025,2]
[426035021,1782126648000,-288.37,0.00025,2]
[426035026,1782126648000,-288.37,0.00025,2]
[426035024,1782126648000,-288.37,0.00025,2]
[426035029,1782126648000,-288.37,0.00025,2]
[426035031,1782126648000,-212.94528994,0.00025,2]
[426035033,1782126648000,-1784.25,0.00025014,2]
[426035040,1782126648000,-200.0,0.00025104,2]
[426035037,1782126648000,-151.0,0.00025104,2]
[426035015,1782126648000,-183.78520518,0.00025,2]
[426035098,1782126648000,-184.31693168,0.00025474,2]
[426035035,1782126648000,-358.19769023,0.00025104,2]
[426035106,1782126648000,-173.69367037,0.00025474,2]
[426035128,1782126648000,-785.0,0.00025592,2]
[426035130,1782126648000,-3648.0,0.00025633,2]
[426035131,1782126648000,-747.80937859,0.0002565,2]
[426035132,1782126648000,-621.78829552,0.0002565,2]
[426035133,1782126648000,-358.19769023,0.00025652,2]
[426035134,1782126648000,-183.45121984,0.00025652,2]
[426035136,1782126648000,-251.11897888,0.00025652,2]
[426035137,1782126648000,-151.0,0.00025652,2]
[426035135,1782126648000,-200.0,0.00025652,2]
[426035138,1782126648000,-2884.75459676,0.00025652,2]
[426035140,1782126648000,-290.3986294,0.00025652,2]
[426035145,1782126648000,-612.79847226,0.0002599,2]
[426035144,1782126648000,-785.0,0.00025924,2]
[426035143,1782126648000,-152.0,0.00025886,4]
[426035141,1782126648000,-16575.22346195,0.00025861,2]
[426035142,1782126648000,-279.43911949,0.00025886,2]
[426035151,1782126648000,-562.0,0.00026,7]
[426035147,1782126648000,-4612.44726536,0.00026,2]
[426035150,1782126648000,-51869.20897901,0.00026,4]
[426035148,1782126648000,-220.71389488,0.00026,2]
[426035149,1782126648000,-9102.70088053,0.00026,5]
[426035146,1782126648000,-1135.37316374,0.00026,2]
[426035152,1782126648000,-150.0,0.00026093,2]
[426035097,1782126648000,-158.45858651,0.00025474,2]
[426035153,1782126648000,-1181.0,0.000261,2]
[426035123,1782126648000,-562.0,0.000255,7]
[426035129,1782126648000,-6082.0,0.00025633,2]
[426035139,1782126648000,-847.53135692,0.00025652,2]
[426035108,1782126648000,-218.55083892,0.00025474,2]
[426035100,1782126648000,-181.37183703,0.00025474,2]
[426035124,1782126648000,-200.0,0.00025503,2]
[426035102,1782126648000,-166.64057669,0.00025474,2]
[426035103,1782126648000,-152.64564695,0.00025474,2]
[426035101,1782126648000,-182.11056311,0.00025474,2]
[426035105,1782126648000,-160.5356423,0.00025474,2]
[426035107,1782126648000,-692.27287416,0.00025474,2]
[426035110,1782126648000,-50000.0,0.000255,5]
[426035111,1782126648000,-50000.0,0.000255,7]
[426035109,1782126648000,-50000.0,0.000255,7]
[426035112,1782126648000,-50000.0,0.000255,5]
[426035115,1782126648000,-151.0,0.000255,2]
[426035113,1782126648000,-50000.0,0.000255,7]
[426035104,1782126648000,-172.8233428,0.00025474,2]
[426035114,1782126648000,-8490.91,0.000255,5]
[426035116,1782126648000,-151.0,0.000255,2]
[426035118,1782126648000,-190.526948,0.000255,2]
[426035119,1782126648000,-190.526948,0.000255,2]
[426035121,1782126648000,-190.526948,0.000255,2]
[426035120,1782126648000,-190.526948,0.000255,2]
[426035122,1782126648000,-151.0,0.000255,2]
[426035126,1782126648000,-35260.3265347,0.00025526,2]
[426035127,1782126648000,-264.43608416,0.00025589,2]
[426035125,1782126648000,-151.0,0.00025526,2]
[426035117,1782126648000,-158.29196,0.000255,2]
[426035189,1782126649000,-50000.0,0.000265,5]
[426035191,1782126649000,-785.0,0.00026589,2]
[426035188,1782126649000,-50000.0,0.000265,5]
[426035187,1782126649000,-50000.0,0.000265,5]
[426035209,1782126649000,-270.0455652,0.00026748,2]
[426035183,1782126649000,-433.164799,0.00026408,2]
[426035186,1782126649000,-803.44,0.00026446,7]
[426035184,1782126649000,-187.0,0.00026408,5]
[426035192,1782126649000,-195.6836118,0.00026733,2]
[426035185,1782126649000,-4370.5809,0.00026425,2]
[426035196,1782126649000,-319.09546027,0.00026733,2]
[426035208,1782126649000,-342.41535644,0.00026747,2]
[426035194,1782126649000,-329.7814608,0.00026733,2]
[426035197,1782126649000,-389.99846273,0.00026733,2]
[426035193,1782126649000,-154.7020948,0.00026733,2]
[426035198,1782126649000,-368.52936196,0.00026733,2]
[426035202,1782126649000,-243.27897111,0.00026733,2]
[426035200,1782126649000,-152.61646468,0.00026733,2]
[426035199,1782126649000,-408.3351631,0.00026733,2]
[426035201,1782126649000,-321.83346627,0.00026733,2]
[426035203,1782126649000,-333.28115338,0.00026743,2]
[426035205,1782126649000,-370.67610465,0.00026747,2]
[426035204,1782126649000,-380.73334684,0.00026747,2]
[426035182,1782126649000,-387.564933,0.00026408,2]
[426035195,1782126649000,-316.25060929,0.00026733,2]
[426035181,1782126649000,-486.604115,0.00026407,2]
[426035156,1782126649000,-209.0,0.000261,2]
[426035180,1782126649000,-441.764121,0.00026407,2]
[426035154,1782126649000,-542.01809096,0.000261,2]
[426035207,1782126649000,-224.71971872,0.00026747,2]
[426035155,1782126649000,-209.0,0.000261,2]
[426035159,1782126649000,-534.0,0.000261,2]
[426035157,1782126649000,-168.0,0.000261,2]
[426035158,1782126649000,-5321.0,0.000261,2]
[426035163,1782126649000,-837.26431755,0.00026168,2]
[426035160,1782126649000,-460.0,0.000261,2]
[426035162,1782126649000,-200.0,0.00026147,2]
[426035161,1782126649000,-501.0,0.00026136,7]
[426035164,1782126649000,-358.1976903,0.000262,2]
[426035169,1782126649000,-847.53135703,0.000262,2]
[426035168,1782126649000,-2991.49051684,0.000262,2]
[426035165,1782126649000,-200.0,0.000262,2]
[426035167,1782126649000,-151.0,0.000262,2]
[426035166,1782126649000,-260.4103811,0.000262,2]
[426035170,1782126649000,-382.99710852,0.000262,2]
[426035172,1782126649000,-200.0,0.00026258,2]
[426035176,1782126649000,-166.842779,0.00026384,2]
[426035173,1782126649000,-436.1,0.00026296,2]
[426035175,1782126649000,-166.842779,0.00026384,2]
[426035171,1782126649000,-785.0,0.00026256,2]
[426035174,1782126649000,-166.842779,0.00026384,2]
[426035179,1782126649000,-562.0,0.000264,7]
[426035177,1782126649000,-166.842779,0.00026384,2]
[426035178,1782126649000,-28040.80563702,0.000264,2]
[426035206,1782126649000,-390.30624586,0.00026747,2]
[426035190,1782126649000,-155.53293,0.000265,2]
[426035210,1782126649000,-292.09502455,0.00026748,2]
[426035241,1782126649000,-1463.66,0.00026849,2]
[426035242,1782126649000,-250.02,0.00026849,8]
[426035245,1782126649000,-200.0,0.00026867,2]
[426035247,1782126649000,-200.0,0.00026867,2]
[426035246,1782126649000,-200.0,0.00026867,2]
[426035248,1782126649000,-200.0,0.00026867,2]
[426035244,1782126649000,-199.09,0.00026849,8]
[426035252,1782126649000,-200.0,0.00026867,2]
[426035249,1782126649000,-200.0,0.00026867,2]
[426035250,1782126649000,-200.0,0.00026867,2]
[426035251,1782126649000,-200.0,0.00026867,2]
[426035254,1782126649000,-200.0,0.00026867,2]
[426035253,1782126649000,-200.0,0.00026867,2]
[426035255,1782126649000,-200.0,0.00026867,2]
[426035259,1782126649000,-200.0,0.00026867,2]
[426035257,1782126649000,-200.0,0.00026867,2]
[426035258,1782126649000,-200.0,0.00026867,2]
[426035256,1782126649000,-200.0,0.00026867,2]
[426035262,1782126649000,-200.0,0.00026867,2]
[426035260,1782126649000,-200.0,0.00026867,2]
[426035263,1782126649000,-200.0,0.00026867,2]
[426035261,1782126649000,-200.0,0.00026867,2]
[426035264,1782126649000,-200.0,0.00026867,2]
[426035265,1782126649000,-200.0,0.00026867,2]
[426035211,1782126649000,-210.32996405,0.00026748,2]
[426035240,1782126649000,-501.0,0.00026818,8]
[426035239,1782126649000,-562.0,0.000268,7]
[426035243,1782126649000,-250.0,0.00026849,8]
[426035238,1782126649000,-437.10167785,0.00026748,2]
[426035212,1782126649000,-226.67051891,0.00026748,2]
[426035215,1782126649000,-200.18459045,0.00026748,2]
[426035213,1782126649000,-351.11567648,0.00026748,2]
[426035214,1782126649000,-332.40358432,0.00026748,2]
[426035217,1782126649000,-395.38193092,0.00026748,2]
[426035220,1782126649000,-370.81750871,0.00026748,2]
[426035216,1782126649000,-186.10420725,0.00026748,2]
[426035219,1782126649000,-368.63386337,0.00026748,2]
[426035218,1782126649000,-316.91717302,0.00026748,2]
[426035221,1782126649000,-362.74367407,0.00026748,2]
[426035223,1782126649000,-225.64827983,0.00026748,2]
[426035222,1782126649000,-364.22112622,0.00026748,2]
[426035237,1782126649000,-519.20465562,0.00026748,2]
[426035224,1782126649000,-226.05870673,0.00026748,2]
[426035225,1782126649000,-237.03304275,0.00026748,2]
[426035234,1782126649000,-223.49105104,0.00026748,2]
[426035236,1782126649000,-236.23414528,0.00026748,2]
[426035235,1782126649000,-163.4724224,0.00026748,2]
[426035232,1782126649000,-321.0712846,0.00026748,2]
[426035233,1782126649000,-347.38734075,0.00026748,2]
[426035228,1782126649000,-229.93832611,0.00026748,2]
[426035231,1782126649000,-345.6466856,0.00026748,2]
[426035230,1782126649000,-225.15466045,0.00026748,2]
[426035226,1782126649000,-204.80700667,0.00026748,2]
[426035227,1782126649000,-305.29129391,0.00026748,2]
[426035229,1782126649000,-171.66425818,0.00026748,2]
[426035288,1782126650000,-500.0,0.00026867,2]
[426035286,1782126650000,-500.0,0.00026867,2]
[426035281,1782126650000,-500.0,0.00026867,2]
[426035285,1782126650000,-500.0,0.00026867,2]
[426035291,1782126650000,-500.0,0.00026867,2]
[426035294,1782126650000,-593.0,0.00026867,2]
[426035289,1782126650000,-500.0,0.00026867,2]
[426035290,1782126650000,-500.0,0.00026867,2]
[426035292,1782126650000,-500.0,0.00026867,2]
[426035284,1782126650000,-500.0,0.00026867,2]
[426035295,1782126650000,-200.0,0.00026867,2]
[426035293,1782126650000,-500.0,0.00026867,2]
[426035287,1782126650000,-500.0,0.00026867,2]
[426035283,1782126650000,-500.0,0.00026867,2]
[426035272,1782126650000,-200.0,0.00026867,2]
[426035280,1782126650000,-500.0,0.00026867,2]
[426035278,1782126650000,-500.0,0.00026867,2]
[426035277,1782126650000,-200.0,0.00026867,2]
[426035279,1782126650000,-500.0,0.00026867,2]
[426035270,1782126650000,-200.0,0.00026867,2]
[426035274,1782126650000,-200.0,0.00026867,2]
[426035273,1782126650000,-200.0,0.00026867,2]
[426035276,1782126650000,-200.0,0.00026867,2]
[426035271,1782126650000,-200.0,0.00026867,2]
[426035275,1782126650000,-200.0,0.00026867,2]
[426035296,1782126650000,-200.0,0.00026867,2]
[426035268,1782126650000,-200.0,0.00026867,2]